[Event "Polofinale MCR junioru 2023"]
[Site "Czech Republic"]
[Date "2023.11.14"]
[Round "5.36"]
[White "Svadlenka, Dominik"]
[Black "Rucabado, Stefan"]
[Result "1-0"]
[TimeControl "90 min per 40 moves + 15 min + 30 sec / move from move 1"]
[WhiteFideId "23716258"]
[BlackFideId "23730315"]
[WhiteElo "1725"]
[BlackElo "1873"]

1. d4 {[%clk 01:30:58]} Nf6 {[%clk 01:30:54]} {[%emt 00:00:06]} 2. c4 {[%clk
01:31:25]} {[%emt 00:00:04]} g6 {[%clk 01:31:20]} {[%emt 00:00:04]} 3. Nc3
{[%clk 01:31:51]} {[%emt 00:00:03]} Bg7 {[%clk 01:31:45]} {[%emt 00:00:04]} 4.
e4 {[%clk 01:32:17]} {[%emt 00:00:05]} d6 {[%clk 01:32:11]} {[%emt 00:00:04]} 5.
Be2 {[%clk 01:32:43]} O-O {[%clk 01:32:36]} {[%emt 00:00:09]} 6. Nf3 {[%clk
01:33:09]} e5 {[%clk 01:32:36]} 7. O-O {[%clk 01:33:09]} Nc6 {[%clk 01:33:28]}
{[%emt 00:00:20]} 8. d5 {[%clk 01:33:57]} {[%emt 00:00:04]} Ne7 {[%clk
01:33:54]} {[%emt 00:00:04]} 9. b4 {[%clk 01:34:18]} {[%emt 00:00:09]} a5
{[%clk 01:34:18]} {[%emt 00:00:05]} 10. bxa5 {[%clk 01:33:36]} {[%emt
00:01:12]} Nd7 {[%clk 01:34:33]} {[%emt 00:00:15]} 11. Nd2 Rxa5 12. Nb3 {[%clk
01:31:17]} Ra8 {[%clk 01:35:07]} {[%emt 00:00:15]} 13. Be3 {[%clk 01:31:05]}
{[%emt 00:00:41]} b6 {[%clk 01:34:14]} {[%emt 00:01:24]} 14. f3 {[%clk
01:28:11]} {[%emt 00:03:23]} f5 {[%clk 01:34:36]} {[%emt 00:00:09]} 15. Kh1
{[%clk 01:20:32]} {[%emt 00:08:10]} f4 {[%clk 01:35:01]} {[%emt 00:00:05]} 16.
Bg1 {[%clk 01:20:41]} {[%emt 00:00:21]} g5 {[%clk 01:35:28]} {[%emt 00:00:03]}
17. a4 {[%clk 01:20:10]} {[%emt 00:01:01]} Nc5 {[%clk 01:28:01]} {[%emt
00:07:56]} 18. a5 {[%clk 01:12:18]} {[%emt 00:08:23]} Nxb3 {[%clk 01:27:30]}
{[%emt 00:01:01]} 19. Qxb3 {[%clk 01:12:44]} {[%emt 00:00:04]} bxa5 {[%clk
01:27:38]} {[%emt 00:00:21]} 20. c5 {[%clk 01:11:48]} {[%emt 00:01:26]} Ng6
{[%clk 01:25:04]} {[%emt 00:03:04]} 21. cxd6 {[%clk 01:04:24]} {[%emt
00:07:54]} cxd6 {[%clk 01:23:43]} {[%emt 00:01:51]} 22. Bb6 {[%clk 01:03:13]}
{[%emt 00:01:41]} Qe7 {[%clk 01:11:39]} {[%emt 00:12:33]} 23. Bxa5 {[%clk
00:57:45]} {[%emt 00:05:59]} Bd7 {[%clk 01:05:36]} {[%emt 00:06:33]} 24. Bc7
{[%clk 00:43:04]} {[%emt 00:15:12]} h5 {[%clk 01:03:45]} {[%emt 00:02:20]} 25.
Qb6 {[%clk 00:40:19]} {[%emt 00:03:15]} Rxa1 {[%clk 01:03:18]} {[%emt
00:00:58]} 26. Rxa1 {[%clk 00:40:30]} {[%emt 00:00:20]} Rf6 {[%clk 01:03:43]}
{[%emt 00:00:04]} 27. Bd8 {[%clk 00:40:25]} {[%emt 00:00:35]} Qf7 {[%clk
01:03:44]} {[%emt 00:00:28]} 28. Bxf6 {[%clk 00:40:28]} {[%emt 00:00:29]} Qxf6
{[%clk 01:04:09]} {[%emt 00:00:04]} 29. Bb5 {[%clk 00:40:06]} {[%emt 00:00:52]}
1-0

[Event "Polofinale MCR junioru 2023"]
[Site "Czech Republic"]
[Date "2023.11.14"]
[Round "5.37"]
[White "Stejskal, Michal"]
[Black "Brychta, David"]
[Result "1-0"]
[TimeControl "90 min per 40 moves + 15 min + 30 sec / move from move 1"]
[WhiteFideId "398195"]
[BlackFideId "23742798"]
[WhiteElo "1872"]
[BlackElo "1230"]

1. d4 {[%clk 01:30:55]} {[%emt 00:00:04]} d5 {[%clk 01:30:58]} {[%emt
00:00:03]} 2. Nf3 {[%clk 01:31:18]} {[%emt 00:00:06]} Nf6 {[%clk 01:31:17]}
{[%emt 00:00:12]} 3. c4 {[%clk 01:31:41]} {[%emt 00:00:07]} e6 {[%clk
01:31:44]} {[%emt 00:00:03]} 4. e3 {[%clk 01:31:58]} {[%emt 00:00:12]} c5
{[%clk 01:31:55]} {[%emt 00:00:20]} 5. Nc3 {[%clk 01:32:21]} {[%emt 00:00:06]}
cxd4 {[%clk 01:32:10]} {[%emt 00:00:17]} 6. exd4 {[%clk 01:32:44]} {[%emt
00:00:06]} Be7 {[%clk 01:32:18]} {[%emt 00:00:22]} 7. Bf4 {[%clk 01:32:55]}
{[%emt 00:00:19]} O-O {[%clk 01:32:40]} {[%emt 00:00:09]} 8. Rc1 {[%clk
01:33:15]} {[%emt 00:00:10]} Nc6 {[%clk 01:32:15]} {[%emt 00:00:56]} 9. Be2
{[%clk 01:33:37]} {[%emt 00:00:06]} dxc4 {[%clk 01:32:02]} {[%emt 00:00:43]} 10.
Bxc4 {[%clk 01:33:57]} {[%emt 00:00:10]} a6 {[%clk 01:31:51]} {[%emt 00:00:42]}
11. O-O {[%clk 01:34:16]} {[%emt 00:00:09]} Nd5 {[%clk 01:20:49]} {[%emt
00:11:32]} 12. Bg3 {[%clk 01:30:56]} {[%emt 00:03:50]} Bf6 {[%clk 01:20:15]}
{[%emt 00:01:05]} 13. Ne4 {[%clk 01:29:48]} {[%emt 00:01:37]} Na5 {[%clk
01:09:27]} {[%emt 00:11:18]} 14. Bxd5 {[%clk 01:29:41]} {[%emt 00:00:37]} Qxd5
{[%clk 01:08:09]} {[%emt 00:01:48]} 15. Nxf6+ {[%clk 01:28:15]} {[%emt
00:01:56]} gxf6 {[%clk 01:08:04]} {[%emt 00:00:05]} 16. Rc5 {[%clk 01:26:37]}
{[%emt 00:02:08]} Qxa2 {[%clk 01:08:47]} {[%emt 00:00:17]} 17. Bh4 {[%clk
01:26:56]} {[%emt 00:00:11]} f5 {[%clk 01:08:12]} {[%emt 00:01:05]} 18. Qd2
{[%clk 01:26:58]} {[%emt 00:00:28]} Nb3 {[%clk 01:07:52]} {[%emt 00:00:49]} 19.
Qg5+ {[%clk 01:27:01]} {[%emt 00:00:26]} Kh8 {[%clk 01:08:17]} {[%emt
00:00:06]} 20. Qh6 {[%clk 01:27:27]} {[%emt 00:00:04]} 1-0

[Event "Polofinale MCR junioru 2023"]
[Site "Czech Republic"]
[Date "2023.11.14"]
[Round "5.38"]
[White "Hampl, David"]
[Black "Vasinek, Martin"]
[Result "1-0"]
[TimeControl "90 min per 40 moves + 15 min + 30 sec / move from move 1"]
[WhiteFideId "398802"]
[BlackFideId "392200"]
[WhiteElo "1801"]
[BlackElo "1987"]

1. d4 {[%clk 01:30:58]} {[%emt 00:00:01]} d6 {[%clk 01:30:47]} {[%emt
00:00:13]} 2. Nc3 {[%clk 01:30:01]} {[%emt 00:01:27]} g6 {[%clk 01:30:57]}
{[%emt 00:00:20]} 3. e4 {[%clk 01:30:07]} {[%emt 00:00:23]} Bg7 {[%clk
01:31:20]} {[%emt 00:00:07]} 4. Bf4 {[%clk 01:29:40]} {[%emt 00:00:57]} Nf6
{[%clk 01:31:13]} {[%emt 00:00:37]} 5. Qd2 {[%clk 01:29:48]} {[%emt 00:00:22]}
h5 {[%clk 01:22:21]} {[%emt 00:09:22]} 6. O-O-O {[%clk 01:29:13]} {[%emt
00:01:04]} c6 {[%clk 01:22:00]} {[%emt 00:00:51]} 7. Nf3 {[%clk 01:20:33]}
{[%emt 00:09:09]} b5 {[%clk 01:21:34]} {[%emt 00:00:56]} 8. Bd3 {[%clk
01:19:05]} {[%emt 00:01:58]} Qa5 {[%clk 01:16:06]} {[%emt 00:05:58]} 9. Kb1
{[%clk 01:15:46]} {[%emt 00:03:50]} b4 {[%clk 01:02:38]} {[%emt 00:13:58]} 10.
Ne2 {[%clk 01:15:49]} {[%emt 00:00:27]} Be6 {[%clk 01:02:27]} {[%emt 00:00:41]}
11. Nc1 {[%clk 01:13:49]} {[%emt 00:02:30]} c5 {[%clk 00:47:12]} {[%emt
00:15:45]} 12. dxc5 {[%clk 01:02:49]} {[%emt 00:11:31]} dxc5 {[%clk 00:47:11]}
{[%emt 00:00:31]} 13. Ng5 {[%clk 01:00:56]} {[%emt 00:02:22]} Nc6 {[%clk
00:31:20]} {[%emt 00:16:22]} 14. Nxe6 {[%clk 00:55:34]} {[%emt 00:05:52]} fxe6
{[%clk 00:31:39]} {[%emt 00:00:10]} 15. e5 {[%clk 00:50:55]} {[%emt 00:05:08]}
Nd5 {[%clk 00:31:29]} {[%emt 00:00:40]} 16. Nb3 {[%clk 00:46:18]} {[%emt
00:05:08]} Qb6 {[%clk 00:31:36]} {[%emt 00:00:24]} 17. Bxg6+ {[%clk 00:45:07]}
{[%emt 00:01:41]} Kf8 {[%clk 00:30:53]} {[%emt 00:01:12]} 18. Bd3 {[%clk
00:25:26]} {[%emt 00:20:10]} Rd8 {[%clk 00:29:44]} {[%emt 00:01:40]} 19. Be3
{[%clk 00:23:27]} {[%emt 00:02:30]} Nxe5 {[%clk 00:25:05]} {[%emt 00:05:09]} 20.
Bxc5 {[%clk 00:21:51]} {[%emt 00:02:06]} Qc7 {[%clk 00:24:24]} {[%emt
00:01:12]} 21. Bxb4 {[%clk 00:18:53]} {[%emt 00:03:27]} Rb8 {[%clk 00:23:46]}
{[%emt 00:01:07]} 22. Ba5 {[%clk 00:15:16]} {[%emt 00:04:09]} Qc6 {[%clk
00:22:20]} {[%emt 00:01:52]} 23. Rhe1 {[%clk 00:07:05]} {[%emt 00:08:44]} Rh6
{[%clk 00:19:31]} {[%emt 00:03:20]} 24. Rxe5 {[%clk 00:06:23]} {[%emt
00:01:12]} 1-0

[Event "Polofinale MCR junioru 2023"]
[Site "Czech Republic"]
[Date "2023.11.14"]
[Round "5.39"]
[White "Sklar, Petr"]
[Black "Striz, Tadeas"]
[Result "0-1"]
[TimeControl "90 min per 40 moves + 15 min + 30 sec / move from move 1"]
[WhiteFideId "23731141"]
[BlackFideId "23723530"]
[WhiteElo "1160"]
[BlackElo "1371"]

1. d4 {[%clk 01:30:57]} {[%emt 00:00:02]} Nf6 {[%clk 01:30:54]} {[%emt
00:00:06]} 2. Bf4 {[%clk 01:31:18]} {[%emt 00:00:09]} d5 {[%clk 01:31:13]}
{[%emt 00:00:11]} 3. e3 {[%clk 01:31:33]} {[%emt 00:00:15]} c5 {[%clk
01:31:13]} {[%emt 00:00:31]} 4. c3 {[%clk 01:31:28]} {[%emt 00:00:35]} Qb6
{[%clk 01:30:51]} {[%emt 00:00:52]} 5. Qb3 {[%clk 01:31:08]} {[%emt 00:00:49]}
Nc6 {[%clk 01:25:56]} {[%emt 00:05:24]} 6. Nd2 {[%clk 01:25:15]} {[%emt
00:06:23]} cxd4 {[%clk 01:21:53]} {[%emt 00:04:33]} 7. exd4 {[%clk 01:14:14]}
{[%emt 00:11:31]} Bf5 {[%clk 01:18:26]} {[%emt 00:03:57]} 8. Ngf3 {[%clk
01:07:21]} {[%emt 00:07:23]} e6 {[%clk 01:14:34]} {[%emt 00:04:22]} 9. Bb5
{[%clk 00:59:46]} {[%emt 00:08:05]} Be7 {[%clk 01:10:34]} {[%emt 00:04:30]} 10.
Ne5 {[%clk 00:50:44]} {[%emt 00:09:32]} Rc8 {[%clk 01:10:25]} {[%emt 00:00:38]}
11. O-O {[%clk 00:48:54]} {[%emt 00:02:21]} O-O {[%clk 01:10:39]} {[%emt
00:00:17]} 12. Bxc6 {[%clk 00:46:37]} {[%emt 00:02:46]} bxc6 {[%clk 01:10:22]}
{[%emt 00:00:48]} 13. Ndf3 {[%clk 00:35:10]} {[%emt 00:11:57]} Ne4 {[%clk
01:10:24]} {[%emt 00:00:28]} 14. Qxb6 {[%clk 00:33:10]} {[%emt 00:02:30]} axb6
{[%clk 01:09:43]} {[%emt 00:01:12]} 15. Nd7 {[%clk 00:32:26]} {[%emt 00:01:14]}
Rfd8 {[%clk 01:09:42]} {[%emt 00:00:29]} 16. Nxb6 {[%clk 00:32:36]} {[%emt
00:00:20]} c5 {[%clk 01:06:49]} {[%emt 00:03:23]} 17. Nxc8 {[%clk 00:31:58]}
{[%emt 00:01:09]} Rxc8 {[%clk 01:07:18]} {[%emt 00:00:01]} 18. dxc5 {[%clk
00:31:00]} {[%emt 00:01:28]} Nxc5 {[%clk 01:07:47]} {[%emt 00:00:01]} 19. Nd4
{[%clk 00:30:10]} {[%emt 00:01:19]} Bg6 {[%clk 01:07:26]} {[%emt 00:00:51]} 20.
Bg3 {[%clk 00:23:00]} {[%emt 00:07:40]} Nd3 {[%clk 01:06:40]} {[%emt 00:01:17]}
21. b4 {[%clk 00:21:11]} {[%emt 00:02:19]} Rxc3 {[%clk 01:03:15]} {[%emt
00:03:54]} 22. b5 {[%clk 00:19:55]} {[%emt 00:01:46]} Bf6 {[%clk 01:01:50]}
{[%emt 00:01:55]} 23. b6 {[%clk 00:17:19]} {[%emt 00:03:07]} Nc5 {[%clk
01:00:43]} {[%emt 00:01:36]} 24. Nb3 {[%clk 00:13:43]} {[%emt 00:04:06]} Nb7
{[%clk 00:59:44]} {[%emt 00:01:28]} 25. Rac1 {[%clk 00:13:31]} {[%emt
00:00:42]} d4 {[%clk 00:59:29]} {[%emt 00:00:46]} 26. Rxc3 {[%clk 00:11:04]}
{[%emt 00:02:56]} dxc3 {[%clk 00:59:56]} {[%emt 00:00:04]} 27. a4 {[%clk
00:10:58]} {[%emt 00:00:36]} Bc2 {[%clk 00:55:41]} {[%emt 00:04:45]} 28. a5
{[%clk 00:11:05]} {[%emt 00:00:23]} Bxb3 {[%clk 00:55:00]} {[%emt 00:01:11]} 29.
a6 {[%clk 00:11:21]} {[%emt 00:00:14]} Nc5 {[%clk 00:55:29]} {[%emt 00:00:01]}
30. a7 {[%clk 00:05:53]} {[%emt 00:05:58]} Bd5 {[%clk 00:55:26]} {[%emt
00:00:33]} 31. Ra1 {[%clk 00:05:45]} {[%emt 00:00:38]} Ba8 {[%clk 00:55:31]}
{[%emt 00:00:24]} 32. Rc1 {[%clk 00:04:28]} {[%emt 00:01:49]} Nb3 {[%clk
00:54:04]} {[%emt 00:01:57]} 33. Rc2 {[%clk 00:04:42]} {[%emt 00:00:16]} Nd4
{[%clk 00:54:20]} {[%emt 00:00:14]} 34. Ra2 {[%clk 00:04:06]} {[%emt 00:01:07]}
c2 {[%clk 00:54:37]} {[%emt 00:00:13]} 35. Bf4 {[%clk 00:04:07]} {[%emt
00:00:28]} Kf8 {[%clk 00:42:09]} {[%emt 00:12:58]} 36. Be3 {[%clk 00:04:16]}
{[%emt 00:00:22]} Ke7 {[%clk 00:40:13]} {[%emt 00:02:26]} 37. Bxd4 {[%clk
00:04:13]} {[%emt 00:00:33]} c1=Q# {[%clk 00:40:29]} {[%emt 00:00:13]} 0-1

[Event "Polofinale MCR junioru 2023"]
[Site "Czech Republic"]
[Date "2023.11.15"]
[Round "6.2"]
[White "Lang, Simon"]
[Black "Hak, David"]
[Result "0-1"]
[TimeControl "90 min per 40 moves + 15 min + 30 sec / move from move 1"]
[WhiteFideId "23712449"]
[BlackFideId "377007"]
[WhiteElo "2090"]
[BlackElo "2253"]

1. e4 {[%clk 01:30:03]} {[%emt 00:00:56]} c5 {[%clk 01:30:55]} {[%emt
00:00:06]} 2. Nf3 {[%clk 01:29:47]} {[%emt 00:00:46]} Nc6 {[%clk 01:31:20]}
{[%emt 00:00:05]} 3. d4 {[%clk 01:29:37]} {[%emt 00:00:40]} cxd4 {[%clk
01:31:40]} {[%emt 00:00:10]} 4. Nxd4 {[%clk 01:29:33]} {[%emt 00:00:33]} g6
{[%clk 01:32:04]} {[%emt 00:00:07]} 5. Nc3 {[%clk 01:29:29]} {[%emt 00:00:34]}
Bg7 {[%clk 01:32:01]} {[%emt 00:00:32]} 6. Be3 {[%clk 01:29:16]} {[%emt
00:00:43]} Nf6 {[%clk 01:32:18]} {[%emt 00:00:13]} 7. f3 {[%clk 01:28:48]}
{[%emt 00:00:58]} O-O {[%clk 01:31:37]} {[%emt 00:01:11]} 8. Qd2 {[%clk
01:28:40]} {[%emt 00:00:38]} d5 {[%clk 01:30:29]} {[%emt 00:01:38]} 9. exd5
{[%clk 01:10:34]} {[%emt 00:18:37]} Nxd5 {[%clk 01:30:37]} {[%emt 00:00:22]} 10.
Nxc6 {[%clk 01:10:01]} {[%emt 00:01:02]} bxc6 {[%clk 01:30:48]} {[%emt
00:00:19]} 11. Bd4 {[%clk 01:02:42]} {[%emt 00:07:49]} e5 {[%clk 01:07:11]}
{[%emt 00:24:08]} 12. Bc5 {[%clk 00:54:01]} {[%emt 00:09:11]} Re8 {[%clk
01:07:29]} {[%emt 00:00:11]} 13. Ne4 {[%clk 00:51:11]} {[%emt 00:03:20]} f5
{[%clk 01:03:39]} {[%emt 00:04:21]} 14. Nd6 {[%clk 00:45:47]} {[%emt 00:05:53]}
Bf8 {[%clk 01:02:05]} {[%emt 00:02:05]} 15. Bc4 {[%clk 00:40:05]} {[%emt
00:06:11]} Be6 {[%clk 00:54:58]} {[%emt 00:07:38]} 16. Bxd5 {[%clk 00:36:35]}
{[%emt 00:04:00]} Bxd5 {[%clk 00:43:13]} {[%emt 00:12:15]} 17. Nb7 {[%clk
00:34:21]} {[%emt 00:02:43]} Qh4+ {[%clk 00:27:49]} {[%emt 00:15:54]} 18. Bf2
{[%clk 00:20:57]} {[%emt 00:13:54]} Qc4 {[%clk 00:27:59]} {[%emt 00:00:20]} 19.
Na5 {[%clk 00:17:55]} {[%emt 00:03:32]} Qb5 {[%clk 00:27:13]} {[%emt 00:01:16]}
20. Nb3 {[%clk 00:18:09]} {[%emt 00:00:16]} Rad8 {[%clk 00:25:12]} {[%emt
00:02:31]} 21. Bh4 {[%clk 00:17:38]} {[%emt 00:01:01]} Rd6 {[%clk 00:16:03]}
{[%emt 00:09:39]} 22. Qf2 {[%clk 00:16:50]} {[%emt 00:01:18]} Bxb3 {[%clk
00:08:55]} {[%emt 00:07:39]} 23. axb3 {[%clk 00:16:53]} {[%emt 00:00:27]} Bh6
{[%clk 00:07:32]} {[%emt 00:01:53]} 24. Qg3 {[%clk 00:15:21]} {[%emt 00:02:01]}
Bd2+ {[%clk 00:06:53]} {[%emt 00:01:09]} 0-1

[Event "Polofinale MCR junioru 2023"]
[Site "Czech Republic"]
[Date "2023.11.15"]
[Round "6.3"]
[White "Bohacek, Jan Andrej"]
[Black "Bokhnak, Timofey"]
[Result "1-0"]
[TimeControl "90 min per 40 moves + 15 min + 30 sec / move from move 1"]
[WhiteFideId "23727357"]
[BlackFideId "14172976"]
[WhiteElo "2066"]
[BlackElo "2210"]

1. d4 {[%clk 01:30:57]} {[%emt 00:00:02]} Nf6 {[%clk 01:30:14]} {[%emt
00:00:46]} 2. c4 {[%clk 01:30:17]} {[%emt 00:01:10]} e6 {[%clk 01:30:38]}
{[%emt 00:00:06]} 3. g3 {[%clk 01:30:27]} {[%emt 00:00:20]} d5 {[%clk
01:31:02]} {[%emt 00:00:06]} 4. Bg2 {[%clk 01:30:11]} {[%emt 00:00:45]} Be7
{[%clk 01:31:20]} {[%emt 00:00:13]} 5. Nf3 {[%clk 01:30:09]} {[%emt 00:00:31]}
O-O {[%clk 01:30:57]} {[%emt 00:00:53]} 6. O-O {[%clk 01:30:13]} {[%emt
00:00:27]} c6 {[%clk 01:31:09]} {[%emt 00:00:18]} 7. Nc3 {[%clk 01:29:20]}
{[%emt 00:01:23]} b6 {[%clk 01:28:06]} {[%emt 00:03:34]} 8. Ne5 {[%clk
01:28:06]} {[%emt 00:01:43]} Bb7 {[%clk 01:26:09]} {[%emt 00:02:27]} 9. e4
{[%clk 01:27:26]} {[%emt 00:01:10]} dxc4 {[%clk 01:23:42]} {[%emt 00:02:57]} 10.
Nxc4 {[%clk 01:26:33]} {[%emt 00:01:22]} Ba6 {[%clk 01:16:39]} {[%emt
00:07:34]} 11. b3 {[%clk 01:26:40]} {[%emt 00:00:23]} b5 {[%clk 01:15:34]}
{[%emt 00:01:36]} 12. Ne5 {[%clk 01:19:48]} {[%emt 00:07:21]} b4 {[%clk
01:04:07]} {[%emt 00:11:57]} 13. Ne2 {[%clk 01:19:53]} {[%emt 00:00:25]} Bxe2
{[%clk 01:03:21]} {[%emt 00:01:16]} 14. Qxe2 {[%clk 01:20:12]} {[%emt
00:00:11]} Qxd4 {[%clk 01:03:47]} {[%emt 00:00:04]} 15. Bb2 {[%clk 01:20:03]}
{[%emt 00:00:39]} Qb6 {[%clk 01:03:22]} {[%emt 00:00:55]} 16. Rac1 {[%clk
01:03:30]} {[%emt 00:17:03]} a5 {[%clk 00:57:04]} {[%emt 00:06:48]} 17. Qc2
{[%clk 00:58:41]} {[%emt 00:05:18]} Rc8 {[%clk 00:52:09]} {[%emt 00:05:26]} 18.
Rfd1 {[%clk 00:52:14]} {[%emt 00:06:57]} Qc7 {[%clk 00:40:13]} {[%emt
00:12:27]} 19. h4 {[%clk 00:37:25]} {[%emt 00:15:18]} Ra7 {[%clk 00:36:35]}
{[%emt 00:04:09]} 20. Bh3 {[%clk 00:31:19]} {[%emt 00:06:35]} Bf8 {[%clk
00:25:58]} {[%emt 00:11:07]} 21. Qc4 {[%clk 00:24:08]} {[%emt 00:07:40]} Qe7
{[%clk 00:25:25]} {[%emt 00:01:04]} 22. f4 {[%clk 00:19:24]} {[%emt 00:05:13]}
Nfd7 {[%clk 00:15:23]} {[%emt 00:10:33]} 23. Nd3 {[%clk 00:19:16]} {[%emt
00:00:38]} c5 {[%clk 00:15:07]} {[%emt 00:00:46]} 24. Qc2 {[%clk 00:16:52]}
{[%emt 00:02:53]} Rac7 {[%clk 00:14:40]} {[%emt 00:00:58]} 25. Ne5 {[%clk
00:15:21]} {[%emt 00:02:01]} Nc6 {[%clk 00:12:07]} {[%emt 00:03:04]} 26. Nc4
{[%clk 00:14:52]} {[%emt 00:00:57]} Rd8 {[%clk 00:11:10]} {[%emt 00:01:27]} 27.
e5 {[%clk 00:12:58]} {[%emt 00:02:25]} Nd4 {[%clk 00:10:59]} {[%emt 00:00:41]}
28. Qf2 {[%clk 00:12:06]} {[%emt 00:01:21]} Nc6 {[%clk 00:05:13]} {[%emt
00:06:17]} 29. Nd6 {[%clk 00:10:04]} {[%emt 00:02:33]} f6 {[%clk 00:04:28]}
{[%emt 00:01:14]} 30. exf6 {[%clk 00:08:30]} {[%emt 00:02:03]} Nxf6 {[%clk
00:04:41]} {[%emt 00:00:18]} 31. Nc4 {[%clk 00:05:51]} {[%emt 00:03:09]} Rxd1+
{[%clk 00:03:35]} {[%emt 00:01:37]} 32. Rxd1 {[%clk 00:06:15]} {[%emt
00:00:05]} Qe8 {[%clk 00:02:04]} {[%emt 00:02:01]} 33. Re1 {[%clk 00:05:45]}
{[%emt 00:00:59]} Nd4 {[%clk 00:02:11]} {[%emt 00:00:24]} 34. Re5 {[%clk
00:04:04]} {[%emt 00:02:11]} Qc6 {[%clk 00:01:11]} {[%emt 00:01:30]} 35. Bg2
{[%clk 00:04:23]} {[%emt 00:00:11]} Qd7 {[%clk 00:01:23]} {[%emt 00:00:18]} 36.
Bh3 {[%clk 00:01:43]} {[%emt 00:03:10]} Rc6 {[%clk 00:01:47]} {[%emt 00:00:06]}
37. Qe3 {[%clk 00:00:52]} {[%emt 00:01:21]} Nd5 {[%clk 00:01:45]} {[%emt
00:00:32]} 38. Qd3 {[%clk 00:00:48]} {[%emt 00:00:34]} Nb6 {[%clk 00:00:42]}
{[%emt 00:01:34]} 39. Bxd4 {[%clk 00:00:34]} {[%emt 00:00:44]} cxd4 {[%clk
00:00:45]} {[%emt 00:00:26]} 40. Nxa5 {[%clk 00:00:35]} {[%emt 00:00:29]} Rc1+
{[%clk 00:00:38]} {[%emt 00:00:37]} 41. Kh2 {[%clk 00:14:05]} {[%emt 00:02:27]}
Qd8 {[%clk 00:14:50]} {[%emt 00:01:50]} 42. Bxe6+ {[%clk 00:11:17]} {[%emt
00:03:19]} Kh8 {[%clk 00:15:20]} 43. Rh5 {[%clk 00:09:04]} {[%emt 00:02:43]} h6
{[%clk 00:12:58]} {[%emt 00:02:52]} 44. Qg6 {[%clk 00:09:16]} {[%emt 00:00:17]}
Rc2+ {[%clk 00:13:12]} {[%emt 00:00:18]} 45. Kh3 {[%clk 00:09:13]} {[%emt
00:00:32]} 1-0